fUSD/lending_fUSD_20250222
["ID","MTS","AMOUNT","RATE_DAILY","PERIOD"]
[354038198,1740193831958,-301.15358885,0.000126,4]
[354038199,1740193831976,-298.84641115,0.000126,4]
[354038200,1740193831986,-1200.0,0.000127,4]
[354038201,1740193831995,-938.19032686,0.00012705,2]
[354038202,1740193832074,-330.58967314,0.00012705,2]
[354038203,1740193832084,-357.29,0.000128,2]
[354038204,1740193832093,-1224.68,0.000128,2]
[354038205,1740193832103,-987.27,0.000128,2]
[354038206,1740193832112,-967.15,0.000128,2]
[354038207,1740193832122,-299.99,0.000128,2]
[354038208,1740193832132,-868.88,0.000128,2]
[354038209,1740193832141,-1259.59,0.000128,2]
[354038210,1740193832151,-1800.0,0.000128,4]
[354038211,1740193832160,-500.0,0.000129,2]
[354038212,1740193832169,-500.0,0.000129,2]
[354038213,1740193832179,-334.96,0.000129,2]
[354038214,1740193832188,-2400.0,0.000129,4]
[354038215,1740193832197,-321.40255424,0.00012914,2]
[354038216,1740193832207,-1704.06550166,0.00012928,2]
[354038217,1740193832216,-307.32648912,0.00012999,2]
[354038218,1740193832224,-500.0,0.00012999,2]
[354038219,1740193832233,-500.0,0.00012999,2]
[354038221,1740193832242,-500.0,0.00012999,2]
[354038223,1740193832251,-548.88,0.00012999,2]
[354038225,1740193832260,-500.0,0.00012999,2]
[354038226,1740193832270,-500.0,0.00012999,2]
[354038227,1740193832284,-500.0,0.00012999,2]
[354038228,1740193832292,-506.33,0.00012999,2]
[354038229,1740193832301,-566.73,0.00012999,2]
[354038230,1740193832310,-500.0,0.00012999,2]
[354038231,1740193832320,-500.0,0.00012999,2]
[354038232,1740193832331,-525.39,0.00012999,2]
[354038234,1740193832341,-500.0,0.00012999,2]
[354038235,1740193832350,-500.0,0.00012999,2]
[354038236,1740193832359,-500.0,0.00012999,2]
[354038237,1740193832369,-500.0,0.00012999,2]
[354038238,1740193832379,-500.0,0.00012999,2]
[354038239,1740193832388,-844.55,0.00012999,2]
[354038241,1740193832398,-500.0,0.00012999,2]
[354038243,1740193832407,-500.0,0.00012999,2]
[354038245,1740193832416,-500.0,0.00012999,2]
[354038247,1740193832425,-518.01,0.00012999,2]
[354038249,1740193832435,-500.0,0.00012999,2]
[354038251,1740193832444,-547.68,0.00012999,2]
[354038253,1740193832453,-500.0,0.00012999,2]
[354038256,1740193832462,-538.77,0.00012999,2]
[354038259,1740193832471,-500.0,0.00012999,2]
[354038262,1740193832480,-500.0,0.00012999,2]
[354038265,1740193832489,-500.0,0.00012999,2]
[354038268,1740193832498,-500.0,0.00012999,2]
[354038271,1740193832507,-500.0,0.00012999,2]
[354038274,1740193832516,-500.0,0.00012999,2]
[354038278,1740193832526,-26241.57720168,0.00013,2]
[354038283,1740193832544,-1972.5999997,0.00013,2]
[354038666,1740193840156,-253.2424977,0.00012999,2]
[354038914,1740193842872,-246.7575023,0.00012999,2]
[354038916,1740193842882,-500.0,0.00012999,2]
[354038918,1740193842891,-500.0,0.00012999,2]
[354038920,1740193842900,-500.0,0.00012999,2]
[354038922,1740193842910,-500.0,0.00012999,2]
[354038923,1740193842920,-6012.93728318,0.00013,2]
[354038926,1740193842931,-2879.3164425,0.00013,2]
[354038929,1740193842948,-138023.32709649,0.00013,2]
[354038931,1740193842960,-3670.12462939,0.00013,2]
[354038933,1740193842971,-2356.22144893,0.00013,2]
[354038940,1740193843032,-386.7999997,0.00013,2]
[354038943,1740193843043,-463.59,0.00013,2]
[354038955,1740193843149,-454561.50589843,0.00013,2]
[354038957,1740193843159,-1704.06550157,0.00013014,2]
[354038959,1740193843168,-600.0,0.00013044,2]
[354038961,1740193843177,-500.0,0.00013044,2]
[354038963,1740193843186,-700.0,0.00013044,2]
[354038965,1740193843195,-502.61,0.00013044,2]
[354038967,1740193843204,-500.0,0.00013081,2]
[354038969,1740193843213,-500.0,0.00013081,2]
[354038971,1740193843222,-500.0,0.00013081,2]
[354038973,1740193843231,-548.88,0.00013081,2]
[354038975,1740193843241,-500.0,0.00013081,2]
[354038977,1740193843250,-500.0,0.00013081,2]
[354038979,1740193843259,-500.0,0.00013081,2]
[354038981,1740193843268,-506.33,0.00013081,2]
[354038983,1740193843278,-566.73,0.00013081,2]
[354038985,1740193843287,-500.0,0.00013081,2]
[354038987,1740193843297,-500.0,0.00013081,2]
[354038989,1740193843306,-525.39,0.00013081,2]
[354038991,1740193843315,-500.0,0.00013081,2]
[354038993,1740193843324,-500.0,0.00013081,2]
[354038995,1740193843333,-500.0,0.00013081,2]
[354038997,1740193843342,-500.0,0.00013081,2]
[354038999,1740193843351,-500.0,0.00013081,2]
[354039002,1740193843360,-844.55,0.00013081,2]
[354039004,1740193843369,-500.0,0.00013081,2]
[354039006,1740193843379,-500.0,0.00013081,2]
[354039008,1740193843388,-500.0,0.00013081,2]
[354039010,1740193843397,-518.01,0.00013081,2]
[354039013,1740193843406,-500.0,0.00013081,2]
[354039015,1740193843415,-547.68,0.00013081,2]
[354039017,1740193843424,-500.0,0.00013081,2]
[354039019,1740193843434,-538.77,0.00013081,2]
[354039021,1740193843443,-500.0,0.00013081,2]
[354039023,1740193843452,-527.52413199,0.00013081,2]
[354039025,1740193843461,-500.0,0.00013081,2]
[354039027,1740193843470,-500.0,0.00013081,2]
[354039029,1740193843479,-500.0,0.00013081,2]
[354039031,1740193843488,-500.0,0.00013081,2]
[354039033,1740193843497,-500.0,0.00013081,2]
[354039035,1740193843506,-500.0,0.00013081,2]
[354039037,1740193843516,-500.0,0.00013081,2]
[354039039,1740193843525,-500.0,0.00013081,2]
[354039041,1740193843535,-500.0,0.00013081,2]
[354039043,1740193843544,-1704.06550157,0.000131,2]
[354039045,1740193843556,-500.0,0.00013164,2]
[354039047,1740193843565,-500.0,0.00013164,2]
[354039049,1740193843574,-500.0,0.00013164,2]
[354039051,1740193843583,-548.88,0.00013164,2]
[354039053,1740193843592,-500.0,0.00013164,2]
[354039055,1740193843601,-500.0,0.00013164,2]
[354039057,1740193843610,-500.0,0.00013164,2]
[354039059,1740193843619,-506.33,0.00013164,2]
[354039061,1740193843628,-566.73,0.00013164,2]
[354039063,1740193843637,-500.0,0.00013164,2]
[354039065,1740193843646,-500.0,0.00013164,2]
[354039066,1740193843655,-525.39,0.00013164,2]
[354039067,1740193843664,-500.0,0.00013164,2]
[354039068,1740193843673,-500.0,0.00013164,2]
[354039069,1740193843682,-500.0,0.00013164,2]
[354039070,1740193843691,-500.0,0.00013164,2]
[354039071,1740193843699,-500.0,0.00013164,2]
[354039072,1740193843708,-844.55,0.00013164,2]
[354039073,1740193843721,-500.0,0.00013164,2]
[354039075,1740193843730,-500.0,0.00013164,2]
[354039077,1740193843739,-500.0,0.00013164,2]
[354039079,1740193843749,-518.01,0.00013164,2]
[354039080,1740193843758,-500.0,0.00013164,2]
[354039082,1740193843767,-547.68,0.00013164,2]
[354039084,1740193843776,-500.0,0.00013164,2]
[354039086,1740193843786,-538.77,0.00013164,2]
[354039088,1740193843796,-500.0,0.00013164,2]
[354039090,1740193843805,-500.0,0.00013164,2]
[354039092,1740193843814,-500.0,0.00013164,2]
[354039094,1740193843824,-500.0,0.00013164,2]
[354039096,1740193843833,-500.0,0.00013164,2]
[354039098,1740193843842,-500.0,0.00013164,2]
[354039100,1740193843852,-500.0,0.00013164,2]
[354039102,1740193843861,-500.0,0.00013164,2]
[354039104,1740193843870,-500.0,0.00013164,2]
[354039107,1740193843884,-500.0,0.00013164,2]
[354039109,1740193843894,-641.11694117,0.0001317,2]
[354039111,1740193843903,-1704.06550157,0.00013185,2]
[354039113,1740193843912,-352.29930943,0.00013213,2]
[354039115,1740193843920,-2582.72718,0.0001324,2]
[354039116,1740193843929,-500.0,0.00013246,2]
[354039118,1740193843938,-500.0,0.00013246,2]
[354039120,1740193843947,-500.0,0.00013246,2]
[354039122,1740193843956,-548.88,0.00013246,2]
[354039145,1740193844160,-500.0,0.00013246,2]
[354039147,1740193844170,-500.0,0.00013246,2]
[354039149,1740193844179,-500.0,0.00013246,2]
[354039151,1740193844189,-506.33,0.00013246,2]
[354039153,1740193844199,-566.73,0.00013246,2]
[354039155,1740193844208,-500.0,0.00013246,2]
[354039157,1740193844217,-500.0,0.00013246,2]
[354039159,1740193844227,-525.39,0.00013246,2]
[354039161,1740193844236,-500.0,0.00013246,2]
[354039163,1740193844246,-500.0,0.00013246,2]
[354039165,1740193844255,-500.0,0.00013246,2]
[354039167,1740193844264,-500.0,0.00013246,2]
[354039169,1740193844273,-500.0,0.00013246,2]
[354039171,1740193844282,-844.55,0.00013246,2]
[354039173,1740193844292,-500.0,0.00013246,2]
[354039175,1740193844300,-500.0,0.00013246,2]
[354039177,1740193844309,-500.0,0.00013246,2]
[354039179,1740193844319,-518.01,0.00013246,2]
[354039181,1740193844328,-500.0,0.00013246,2]
[354039183,1740193844337,-547.68,0.00013246,2]
[354039185,1740193844347,-500.0,0.00013246,2]
[354039187,1740193844356,-538.77,0.00013246,2]
[354039189,1740193844366,-500.0,0.00013246,2]
[354039191,1740193844376,-500.0,0.00013246,2]
[354039193,1740193844385,-500.0,0.00013246,2]
[354039195,1740193844394,-257.95437324,0.00013246,2]
[354039197,1740193844403,-500.0,0.00013246,2]
[354039199,1740193844412,-500.0,0.00013246,2]
[354039201,1740193844421,-500.0,0.00013246,2]
[354039203,1740193844430,-500.0,0.00013246,2]
[354039205,1740193844439,-500.0,0.00013246,2]
[354039207,1740193844449,-500.0,0.00013246,2]
[354039209,1740193844458,-3990.947,0.00013268,2]
[354039211,1740193844467,-1000.0,0.00013268,2]
[354039213,1740193844476,-2235.19928124,0.00013269,2]
[354039215,1740193844485,-6669.8069,0.00013269,2]
[354039217,1740193844494,-210.3933114,0.0001327,2]
[354039219,1740193844502,-167.21543543,0.0001327,2]
[354039221,1740193844511,-1704.06550157,0.00013271,2]
[354039223,1740193844521,-2536.51555178,0.00013313,5]
[354039225,1740193844529,-500.0,0.00013328,2]
[354039226,1740193844538,-500.0,0.00013328,2]
[354039228,1740193844548,-500.0,0.00013328,2]
[354039231,1740193844558,-548.88,0.00013328,2]
[354039233,1740193844568,-500.0,0.00013328,2]
[354039235,1740193844577,-500.0,0.00013328,2]
[354039237,1740193844586,-500.0,0.00013328,2]
[354039239,1740193844595,-506.33,0.00013328,2]
[354039241,1740193844604,-566.73,0.00013328,2]
[354039243,1740193844614,-500.0,0.00013328,2]
[354039245,1740193844623,-500.0,0.00013328,2]
[354039247,1740193844632,-525.39,0.00013328,2]
[354039249,1740193844641,-500.0,0.00013328,2]
[354039251,1740193844651,-500.0,0.00013328,2]
[354039253,1740193844660,-500.0,0.00013328,2]
[354039255,1740193844669,-500.0,0.00013328,2]
[354039257,1740193844678,-500.0,0.00013328,2]
[354039259,1740193844686,-844.55,0.00013328,2]
[354039261,1740193844695,-500.0,0.00013328,2]
[354039263,1740193844704,-500.0,0.00013328,2]
[354039265,1740193844713,-500.0,0.00013328,2]
[354039267,1740193844726,-518.01,0.00013328,2]
[354039269,1740193844735,-500.0,0.00013328,2]
[354039271,1740193844744,-547.68,0.00013328,2]
[354039272,1740193844753,-500.0,0.00013328,2]
[354039274,1740193844763,-538.77,0.00013328,2]
[354039276,1740193844772,-500.0,0.00013328,2]
[354039278,1740193844782,-500.0,0.00013328,2]
[354039280,1740193844792,-500.0,0.00013328,2]
[354039282,1740193844801,-500.0,0.00013328,2]
[354039284,1740193844812,-500.0,0.00013328,2]
[354039286,1740193844827,-500.0,0.00013328,2]
[354039288,1740193844837,-500.0,0.00013328,2]
[354039290,1740193844846,-500.0,0.00013328,2]
[354039292,1740193844855,-500.0,0.00013328,2]
[354039294,1740193844865,-1704.06550157,0.00013357,2]
[354039296,1740193844874,-203.82369593,0.00013358,2]
[354039298,1740193844883,-1392.686,0.00013366,2]
[354039300,1740193844892,-300.0,0.00013367,2]
[354039302,1740193844902,-300.0,0.00013368,2]
[354039304,1740193844912,-300.0,0.00013368,2]
[354039306,1740193844921,-224.46896528,0.00013368,2]
[354039308,1740193844931,-500.0,0.00013368,2]
[354039310,1740193844940,-500.0,0.00013368,2]
[354039312,1740193844949,-500.0,0.00013368,2]
[354039314,1740193844958,-500.0,0.00013368,2]
[354039317,1740193844968,-509.39976649,0.00013368,2]
[354039319,1740193844977,-500.0,0.00013368,2]
[354039321,1740193844987,-500.0,0.00013368,2]
[354039323,1740193844996,-500.0,0.00013368,2]
[354039325,1740193845005,-500.0,0.00013368,2]
[354039327,1740193845014,-500.0,0.00013368,2]
[354039329,1740193845024,-500.0,0.00013368,2]
[354039331,1740193845033,-500.0,0.00013368,2]
[354039333,1740193845042,-421.90325573,0.00013368,2]
[354039334,1740193845051,-163.68185205,0.00013368,2]
[354039337,1740193845061,-500.0,0.00013368,2]
[354039339,1740193845071,-500.0,0.00013368,2]
[354039341,1740193845080,-500.0,0.00013368,2]
[354039343,1740193845089,-500.0,0.00013368,2]
[354039344,1740193845099,-500.0,0.00013368,2]
[354039346,1740193845108,-500.0,0.00013368,2]
[354039348,1740193845117,-500.0,0.00013368,2]
[354039350,1740193845126,-500.0,0.00013368,2]
[354039352,1740193845135,-500.0,0.00013368,2]
[354039354,1740193845144,-334.6754827,0.00013368,2]
[354039356,1740193845154,-500.0,0.00013368,2]
[354039357,1740193845163,-500.0,0.00013368,2]
[354039359,1740193845172,-332.54099638,0.00013368,2]
[354039361,1740193845181,-490.0,0.00013368,2]
[354039363,1740193845190,-500.0,0.00013368,2]
[354039365,1740193845199,-500.0,0.00013368,2]
[354039367,1740193845208,-500.0,0.00013368,2]
[354039369,1740193845218,-500.0,0.00013368,2]
[354039371,1740193845227,-500.0,0.00013368,2]
[354039373,1740193845236,-500.0,0.00013368,2]
[354039375,1740193845245,-500.0,0.00013368,2]
[354039377,1740193845255,-500.0,0.00013368,2]
[354039379,1740193845264,-500.0,0.00013368,2]
[354039381,1740193845274,-500.0,0.00013368,2]
[354039383,1740193845283,-500.0,0.00013368,2]
[354039385,1740193845292,-500.0,0.00013368,2]
[354039387,1740193845302,-500.0,0.00013368,2]
[354039389,1740193845312,-500.0,0.00013368,2]
[354039391,1740193845321,-500.0,0.00013368,2]
[354039393,1740193845331,-519.3441761,0.00013368,2]
[354039396,1740193845343,-500.0,0.00013368,2]
[354039397,1740193845352,-500.0,0.00013368,2]
[354039399,1740193845362,-298.01603595,0.00013368,2]
[354039401,1740193845371,-500.0,0.00013368,2]
[354039403,1740193845380,-500.0,0.00013368,2]
[354039405,1740193845389,-500.0,0.00013368,2]
[354039407,1740193845397,-500.0,0.00013368,2]
[354039409,1740193845406,-629.41228766,0.00013368,2]
[354039411,1740193845416,-500.0,0.00013368,2]
[354039413,1740193845426,-500.0,0.00013368,2]
[354039415,1740193845435,-500.0,0.00013368,2]
[354039417,1740193845444,-500.0,0.00013368,2]
[354039419,1740193845454,-500.0,0.00013368,2]
[354039421,1740193845466,-647.12993749,0.00013368,2]
[354039423,1740193845476,-500.0,0.00013368,2]
[354039425,1740193845486,-500.0,0.00013368,2]
[354039427,1740193845495,-523.87886714,0.00013368,2]
[354039429,1740193845505,-500.0,0.00013368,2]
[354039430,1740193845515,-500.0,0.00013368,2]
[354039431,1740193845523,-641.92768388,0.00013368,2]
[354039432,1740193845533,-500.0,0.00013368,2]
[354039433,1740193845542,-500.0,0.00013368,2]
[354039434,1740193845551,-269.20915713,0.00013368,2]
[354039435,1740193845561,-303.33178029,0.00013368,2]
[354039436,1740193845570,-303.49264907,0.00013368,2]
[354039437,1740193845579,-478.98329347,0.00013368,3]
[354039439,1740193845588,-514738.56970264,0.00013368,3]
[354039442,1740193845602,-925.44532631,0.00013368,3]
[354039488,1740193846048,-26360.59999985,0.00013368,3]
[354039490,1740193846059,-4411.6,0.00013368,3]
[354039492,1740193846070,-6497.4,0.00013368,3]
[354039494,1740193846082,-5510.5999,0.00013368,3]
[354039497,1740193846095,-15705.900014,0.00013368,3]
[354039499,1740193846106,-1785.0,0.00013368,3]
[354039501,1740193846116,-1829.6001,0.00013368,3]
[354039503,1740193846127,-4178.000024,0.00013368,3]
[354039505,1740193846138,-10055.0999975,0.00013368,3]
[354039507,1740193846149,-8825.4,0.00013368,3]
[354039509,1740193846160,-4478.40012,0.00013368,3]
[354039511,1740193846171,-3843.0000001,0.00013368,3]
[354039514,1740193846183,-5779.80002,0.00013368,3]
[354039518,1740193846215,-1412.62263413,0.00013368,3]
[354039520,1740193846226,-659.8266072,0.00013368,3]
[354039706,1740194089147,197.0,0.00020141,120]
[354039707,1740194135705,4027.84062231,0.00020141,120]
[354039708,1740194536805,153.44,8.767e-05,2]
[354039725,1740195013462,1901.83,9e-05,2]
[354039738,1740195032090,-300.0,9.998e-05,2]
[354039739,1740195032100,-500.0,9.999e-05,2]
[354039740,1740195032109,-71.53695397,9.999e-05,2]
[354039741,1740195032123,-428.46304603,9.999e-05,2]
[354039742,1740195032132,-239.36958225,9.999e-05,2]
[354039743,1740195032151,-260.63041775,9.999e-05,2]
[354039744,1740195032162,-509.55983522,9.999e-05,2]
[354039745,1740195032171,-235.96504363,9.999e-05,2]
[354039746,1740195032257,-264.03495637,9.999e-05,2]
[354039747,1740195032267,-183.00363429,9.999e-05,2]
[354039748,1740195032276,-500.0,9.999e-05,2]
[354039749,1740195032286,-500.0,9.999e-05,2]
[354039750,1740195032296,-500.0,9.999e-05,2]
[354039751,1740195032306,-339.35832026,9.999e-05,2]
[354039752,1740195032420,-160.64167974,9.999e-05,2]
[354039753,1740195032430,-550.0,0.0001,2]
[354039754,1740195032440,-135152.24690042,0.0001,2]
[354039766,1740195037933,-322.60953011,0.0001,2]
[354039820,1740195040247,-1078.2000003,0.0001,2]
[354039821,1740195040409,-1043.80291203,0.0001,2]
[354040082,1740195043140,-264.63931121,0.0001,2]
[354040088,1740195043196,-133032.96558163,0.0001,2]
[354040593,1740195541650,1225.09,8.463e-05,2]
[354040594,1740195732246,200.0,8.421e-05,2]
[354040600,1740196232296,-150.0,9.999e-05,2]
[354040601,1740196232306,-300.0,9.999e-05,2]
[354040602,1740196232317,-4646.0,0.0001,2]
[354040603,1740196232351,-7174.06232163,0.0001,2]
[354040604,1740196232361,-181.91374891,0.0001,2]
[354040605,1740196232370,-3148.4311,0.0001,2]
[354040606,1740196232380,-165.58147916,0.0001,2]
[354040607,1740196232611,-1000.0,0.00010184,2]
[354040608,1740196232621,-254.87,0.00010206,2]
[354040609,1740196232631,-233.98,0.00010247,2]
[354040611,1740196232640,-165.58147916,0.00010379,2]
[354040612,1740196232650,-1100.0,0.000107,3]
[354040613,1740196232659,-1225.09,0.00010727,2]
[354040614,1740196232668,-250.0,0.00010775,2]
[354040615,1740196232678,-2200.0,0.000108,3]
[354040616,1740196232688,-165.58147916,0.00010858,2]
[354040617,1740196232698,-3300.0,0.000109,3]
[354040618,1740196232708,-150.0,0.00010944,2]
[354040619,1740196232717,-1114.149,0.00010957,2]
[354040620,1740196232726,-293.16620277,0.00010958,2]
[354040621,1740196232735,-500.0,0.00010958,2]
[354040622,1740196232745,-500.0,0.00010958,2]
[354040623,1740196232754,-500.0,0.00010958,2]
[354040624,1740196232763,-500.0,0.00010958,2]
[354040625,1740196232772,-505.23241826,0.00010958,2]
[354040626,1740196232782,-511.46778186,0.00010958,2]
[354040627,1740196232791,-500.0,0.00010958,2]
[354040628,1740196232800,-505.30467717,0.00010958,2]
[354040629,1740196232809,-500.0,0.00010958,2]
[354040630,1740196232819,-600.21717452,0.00010958,2]
[354040631,1740196232828,-500.0,0.00010958,2]
[354040632,1740196232837,-500.0,0.00010958,2]
[354040633,1740196232846,-501.8995161,0.00010958,2]
[354040634,1740196232856,-500.0,0.00010958,2]
[354040635,1740196232865,-500.0,0.00010958,2]
[354040636,1740196232874,-500.0,0.00010958,2]
[354040637,1740196232883,-500.0,0.00010958,2]
[354040638,1740196232892,-500.0,0.00010958,2]
[354040639,1740196232901,-500.0,0.00010958,2]
[354040640,1740196232911,-500.0,0.00010958,2]
[354040641,1740196232920,-500.0,0.00010958,2]
[354040642,1740196232929,-510.52934833,0.00010958,2]
[354040643,1740196232938,-500.0,0.00010958,2]
[354040644,1740196232948,-500.0,0.00010958,2]
[354040645,1740196232957,-500.0,0.00010958,2]
[354040646,1740196232966,-504.97602398,0.00010958,2]
[354040647,1740196232976,-630.03619122,0.00010958,2]
[354040648,1740196232985,-500.0,0.00010958,2]
[354040649,1740196232995,-500.0,0.00010958,2]
[354040650,1740196233005,-509.88898102,0.00010958,2]
[354040651,1740196233014,-500.0,0.00010958,2]
[354040652,1740196233023,-500.0,0.00010958,2]
[354040653,1740196233033,-500.0,0.00010958,2]
[354040654,1740196233042,-500.0,0.00010958,2]
[354040655,1740196233051,-500.0,0.00010958,2]
[354040656,1740196233062,-500.0,0.00010958,2]
[354040657,1740196233072,-500.0,0.00010958,2]
[354040658,1740196233082,-150.7898166,0.00010958,2]
[354040659,1740196233091,-162.25067158,0.00010958,2]
[354040660,1740196233101,-500.0,0.00010958,2]
[354040661,1740196233111,-500.0,0.00010958,2]
[354040662,1740196233120,-508.97678958,0.00010958,2]
[354040663,1740196233129,-510.03180644,0.00010958,2]
[354040664,1740196233139,-349.28919855,0.00010958,2]
[354040665,1740196233149,-375.49639052,0.00010958,2]
[354040666,1740196233158,-505.40686938,0.00010958,2]
[354040667,1740196233167,-500.0,0.00010958,2]
[354040668,1740196233176,-500.0,0.00010958,2]
[354040669,1740196233186,-500.0,0.00010958,2]
[354040670,1740196233196,-500.0,0.00010958,2]
[354040671,1740196233205,-508.03906238,0.00010958,2]
[354040672,1740196233214,-500.0,0.00010958,2]
[354040673,1740196233223,-500.0,0.00010958,2]
[354040674,1740196233232,-500.0,0.00010958,2]
[354040675,1740196233241,-500.0,0.00010958,2]
[354040676,1740196233251,-510.37602742,0.00010958,2]
[354040677,1740196233260,-508.92351888,0.00010958,2]
[354040678,1740196233269,-500.0,0.00010958,2]
[354040679,1740196233279,-500.0,0.00010958,2]
[354040680,1740196233288,-514.53342947,0.00010958,2]
[354040681,1740196233297,-500.0,0.00010958,2]
[354040682,1740196233307,-400.0,0.00010958,2]
[354040683,1740196233317,-521.18906562,0.00010958,2]
[354040684,1740196233326,-500.0,0.00010958,2]
[354040685,1740196233335,-500.0,0.00010958,2]
[354040686,1740196233345,-500.0,0.00010958,2]
[354040687,1740196233355,-500.0,0.00010958,2]
[354040688,1740196233364,-500.0,0.00010958,2]
[354040689,1740196233374,-500.0,0.00010958,2]
[354040690,1740196233383,-500.0,0.00010958,2]
[354040691,1740196233394,-500.0,0.00010958,2]
[354040692,1740196233404,-500.0,0.00010958,2]
[354040693,1740196233413,-500.0,0.00010958,2]
[354040694,1740196233423,-500.0,0.00010958,2]
[354040695,1740196233432,-500.0,0.00010958,2]
[354040696,1740196233441,-500.0,0.00010958,2]
[354040697,1740196233451,-500.0,0.00010958,2]
[354040698,1740196233460,-500.0,0.00010958,2]
[354040699,1740196233469,-500.0,0.00010958,2]
[354040700,1740196233479,-500.0,0.00010958,2]
[354040701,1740196233488,-500.0,0.00010958,2]
[354040702,1740196233497,-500.0,0.00010958,2]
[354040703,1740196233511,-500.0,0.00010958,2]
[354040704,1740196233521,-500.0,0.00010958,2]
[354040705,1740196233530,-505.92951915,0.00010958,2]
[354040706,1740196233540,-500.0,0.00010958,2]
[354040707,1740196233551,-508.71881659,0.00010958,2]
[354040708,1740196233560,-500.0,0.00010958,2]
[354040709,1740196233570,-500.0,0.00010958,2]
[354040710,1740196233581,-507.39147837,0.00010958,2]
[354040711,1740196233592,-500.0,0.00010958,2]
[354040712,1740196233602,-509.81506429,0.00010958,2]
[354040713,1740196233612,-500.0,0.00010958,2]
[354040714,1740196233623,-500.0,0.00010958,2]
[354040715,1740196233632,-500.0,0.00010958,2]
[354040716,1740196233642,-641.12766809,0.00010958,2]
[354040717,1740196233652,-500.0,0.00010958,2]
[354040718,1740196233662,-500.0,0.00010958,2]
[354040719,1740196233672,-500.0,0.00010958,2]
[354040720,1740196233682,-500.0,0.00010958,2]
[354040721,1740196233693,-500.0,0.00010958,2]
[354040722,1740196233703,-500.0,0.00010958,2]
[354040723,1740196233713,-500.0,0.00010958,2]
[354040724,1740196233722,-500.0,0.00010958,2]
[354040725,1740196233732,-500.0,0.00010958,2]
[354040726,1740196233742,-500.0,0.00010958,2]
[354040727,1740196233751,-500.0,0.00010958,2]
[354040728,1740196233760,-505.61713068,0.00010958,2]
[354040729,1740196233770,-500.0,0.00010958,2]
[354040730,1740196233779,-500.0,0.00010958,2]
[354040731,1740196233789,-464.83740681,0.00010958,2]
[354040732,1740196233798,-505.18774637,0.00010958,2]
[354040733,1740196233808,-500.0,0.00010958,2]
[354040734,1740196233819,-500.0,0.00010958,2]
[354040735,1740196233829,-500.0,0.00010958,2]
[354040736,1740196233838,-500.0,0.00010958,2]
[354040737,1740196233848,-589.24528974,0.00010958,2]
[354040738,1740196233858,-500.0,0.00010958,2]
[354040739,1740196233867,-500.0,0.00010958,2]
[354040740,1740196233878,-500.0,0.00010958,2]
[354040741,1740196233888,-507.31753736,0.00010958,2]
[354040742,1740196233898,-500.0,0.00010958,2]
[354040743,1740196233908,-500.0,0.00010958,2]
[354040744,1740196233917,-500.0,0.00010958,2]
[354040745,1740196233927,-493.38094486,0.00010958,2]
[354040746,1740196233936,-495.10087506,0.00010958,2]
[354040747,1740196233946,-500.0,0.00010958,2]
[354040748,1740196233956,-500.0,0.00010958,2]